fUSD/lending_fUSD_20250609
["ID","MTS","AMOUNT","RATE_DAILY","PERIOD"]
[365170658,1749511840955,-490.0,0.00016438,2]
[365170659,1749511840965,-471.4111104,0.00016438,2]
[365170660,1749511840974,-490.0,0.00016438,2]
[365170661,1749511840984,-469.76711073,0.00016438,2]
[365170662,1749511840993,-561.17,0.00016438,2]
[365170663,1749511841004,-490.0,0.00016438,2]
[365170664,1749511841013,-490.0,0.00016438,2]
[365170665,1749511841022,-490.0,0.00016438,2]
[365170666,1749511841031,-490.0,0.00016438,2]
[365170667,1749511841041,-480.0,0.00016438,2]
[365170668,1749511841050,-490.0,0.00016438,2]
[365170669,1749511841059,-815.01,0.00016438,2]
[365170670,1749511841069,-518.23,0.00016438,2]
[365170671,1749511841078,-547.19,0.00016438,2]
[365170672,1749511841088,-577.76028642,0.00016438,2]
[365170673,1749511841097,-1508.01,0.00016438,2]
[365170674,1749511841106,-490.0,0.00016438,2]
[365170675,1749511841116,-151.0,0.00016438,2]
[365170676,1749511841125,-480.0,0.00016438,2]
[365170677,1749511841135,-490.0,0.00016438,2]
[365170678,1749511841144,-490.0,0.00016438,2]
[365170679,1749511841154,-490.0,0.00016438,2]
[365170680,1749511841164,-2593.63,0.00016438,2]
[365170681,1749511841173,-490.0,0.00016438,2]
[365170682,1749511841182,-1114.94,0.00016438,2]
[365170683,1749511841192,-490.0,0.00016438,2]
[365170684,1749511841201,-490.0,0.00016438,2]
[365170685,1749511841211,-1002.67,0.00016438,2]
[365170686,1749511841220,-151.0,0.00016438,2]
[365170687,1749511841230,-490.0,0.00016438,2]
[365170688,1749511841239,-490.0,0.00016438,2]
[365170689,1749511841248,-1295.21,0.00016438,2]
[365170690,1749511841259,-490.0,0.00016438,2]
[365170691,1749511841269,-151.0,0.00016438,2]
[365170692,1749511841278,-490.0,0.00016438,2]
[365170693,1749511841287,-490.0,0.00016438,2]
[365170694,1749511841297,-490.0,0.00016438,2]
[365170695,1749511841309,-490.0,0.00016438,2]
[365170696,1749511841319,-490.0,0.00016438,2]
[365170697,1749511841328,-490.0,0.00016438,2]
[365170698,1749511841337,-546.21,0.00016438,2]
[365170699,1749511841348,-490.0,0.00016438,2]
[365170700,1749511841358,-532.95776976,0.00016438,2]
[365170701,1749511841368,-480.0,0.00016438,2]
[365170702,1749511841379,-490.0,0.00016438,2]
[365170703,1749511841388,-740.01,0.00016438,2]
[365170704,1749511841398,-490.0,0.00016438,2]
[365170705,1749511841407,-490.0,0.00016438,2]
[365170706,1749511841417,-490.0,0.00016438,2]
[365170707,1749511841426,-525.47580052,0.00016438,2]
[365170708,1749511841436,-490.0,0.00016438,2]
[365170709,1749511841446,-626.45,0.00016438,2]
[365170710,1749511841456,-490.0,0.00016438,2]
[365170711,1749511841466,-490.0,0.00016438,2]
[365170712,1749511841476,-535.83,0.00016438,2]
[365170713,1749511841487,-480.0,0.00016438,2]
[365170714,1749511841496,-759.85,0.00016438,2]
[365170715,1749511841507,-490.0,0.00016438,2]
[365170716,1749511841518,-490.0,0.00016438,2]
[365170717,1749511841528,-480.0,0.00016438,2]
[365170718,1749511841538,-480.0,0.00016438,2]
[365170719,1749511841548,-490.0,0.00016438,2]
[365170720,1749511841558,-1329.3,0.00016438,2]
[365170721,1749511841568,-490.0,0.00016438,2]
[365170722,1749511841577,-527.31,0.00016438,2]
[365170723,1749511841587,-490.0,0.00016438,2]
[365170724,1749511841596,-490.0,0.00016438,2]
[365170725,1749511841607,-490.0,0.00016438,2]
[365170726,1749511841616,-490.0,0.00016438,2]
[365170727,1749511841626,-490.0,0.00016438,2]
[365170728,1749511841635,-490.0,0.00016438,2]
[365170729,1749511841645,-490.0,0.00016438,2]
[365170730,1749511841655,-512.92,0.00016438,2]
[365170731,1749511841665,-616.16,0.00016438,2]
[365170732,1749511841674,-1264.3,0.00016438,2]
[365170733,1749511841684,-490.0,0.00016438,2]
[365170734,1749511841694,-490.0,0.00016438,2]
[365170735,1749511841703,-151.0,0.00016438,2]
[365170736,1749511841713,-490.0,0.00016438,2]
[365170737,1749511841723,-490.0,0.00016438,2]
[365170738,1749511841732,-610.13,0.00016438,2]
[365170739,1749511841741,-660.15,0.00016438,2]
[365170740,1749511841752,-1121.41,0.00016438,2]
[365170741,1749511841761,-498.87,0.00016438,2]
[365170742,1749511841771,-555.04,0.00016438,2]
[365170743,1749511841781,-764.26,0.00016438,2]
[365170744,1749511841790,-151.0,0.00016438,2]
[365170745,1749511841799,-672.84,0.00016438,2]
[365170746,1749511841809,-627.49,0.00016438,2]
[365170747,1749511841819,-1275.4,0.00016438,2]
[365170748,1749511841831,-490.0,0.00016438,2]
[365170749,1749511841844,-490.0,0.00016438,2]
[365170750,1749511841854,-772.9,0.00016438,2]
[365170751,1749511841863,-490.0,0.00016438,2]
[365170752,1749511841873,-1208.78,0.00016438,2]
[365170753,1749511841882,-490.0,0.00016438,2]
[365170754,1749511841891,-490.0,0.00016438,2]
[365170755,1749511841901,-490.0,0.00016438,2]
[365170756,1749511841911,-490.0,0.00016438,2]
[365170757,1749511841920,-506.43,0.00016438,2]
[365170758,1749511841930,-490.0,0.00016438,2]
[365170759,1749511841940,-490.0,0.00016438,2]
[365170760,1749511841950,-502.19,0.00016438,2]
[365170761,1749511841960,-480.0,0.00016438,2]
[365170762,1749511841969,-490.0,0.00016438,2]
[365170763,1749511841978,-3249.0,0.00016438,2]
[365170764,1749511841988,-634.37,0.00016438,2]
[365170765,1749511841998,-800.68,0.00016438,2]
[365170766,1749511842010,-151.0,0.00016438,2]
[365170767,1749511842019,-490.0,0.00016438,2]
[365170768,1749511842028,-533.00284182,0.00016438,2]
[365170769,1749511842038,-490.0,0.00016438,2]
[365170770,1749511842047,-290.108726,0.00016438,2]
[365170771,1749511842056,-896.11,0.00016438,2]
[365170772,1749511842065,-490.0,0.00016438,2]
[365170773,1749511842075,-681.52,0.00016438,2]
[365170774,1749511842084,-490.0,0.00016438,2]
[365170775,1749511842092,-500.0,0.00016438,2]
[365170776,1749511842101,-155.62260045,0.00016438,2]
[365170777,1749511842111,-151.0,0.00016438,2]
[365170778,1749511842120,-557.17335014,0.00016438,2]
[365170779,1749511842129,-200.0,0.00016438,2]
[365170780,1749511842138,-490.0,0.00016438,2]
[365170781,1749511842147,-2965.23,0.00016438,2]
[365170782,1749511842157,-490.0,0.00016438,2]
[365170783,1749511842166,-490.0,0.00016438,2]
[365170784,1749511842175,-490.0,0.00016438,2]
[365170785,1749511842184,-490.0,0.00016438,2]
[365170786,1749511842194,-490.0,0.00016438,2]
[365170787,1749511842203,-490.0,0.00016438,2]
[365170788,1749511842212,-150.0,0.00016438,2]
[365170789,1749511842222,-250.10833723,0.00016438,2]
[365170790,1749511842231,-719.75,0.00016438,2]
[365170791,1749511842240,-490.0,0.00016438,2]
[365170792,1749511842252,-490.0,0.00016438,2]
[365170793,1749511842261,-616.58,0.00016438,2]
[365170794,1749511842271,-375.55976008,0.00016438,2]
[365170795,1749511842282,-490.0,0.00016438,2]
[365170796,1749511842291,-490.0,0.00016438,2]
[365170797,1749511842301,-617.13622501,0.00016438,2]
[365170798,1749511842319,-497.74,0.00016438,2]
[365170799,1749511842328,-730.14,0.00016438,2]
[365170800,1749511842337,-151.0,0.00016438,2]
[365170801,1749511842347,-151.0,0.00016438,2]
[365170802,1749511842357,-490.0,0.00016438,2]
[365170803,1749511842373,-582.3,0.00016438,2]
[365170804,1749511842382,-1070.79,0.00016438,2]
[365170805,1749511842392,-490.0,0.00016438,2]
[365170806,1749511842402,-490.0,0.00016438,2]
[365170807,1749511842413,-839.92,0.00016438,2]
[365170808,1749511842423,-619.26370587,0.00016438,2]
[365170809,1749511842433,-686.6,0.00016438,2]
[365170810,1749511842443,-501.75,0.00016438,2]
[365170811,1749511842452,-490.0,0.00016438,2]
[365170812,1749511842462,-490.0,0.00016438,2]
[365170813,1749511842472,-490.0,0.00016438,2]
[365170814,1749511842481,-1307.39,0.00016438,2]
[365170815,1749511842490,-613.87,0.00016438,2]
[365170816,1749511842500,-30997.62,0.00016438,2]
[365170817,1749511842509,-490.0,0.00016438,2]
[365170818,1749511842519,-611.29,0.00016438,2]
[365170819,1749511842528,-151.0,0.00016438,2]
[365170820,1749511842537,-490.0,0.00016438,2]
[365170821,1749511842547,-151.0,0.00016438,2]
[365170822,1749511842556,-490.0,0.00016438,2]
[365170823,1749511842566,-490.0,0.00016438,2]
[365170824,1749511842576,-490.0,0.00016438,2]
[365170826,1749511842585,-513.81,0.00016438,2]
[365170828,1749511842595,-480.0,0.00016438,2]
[365170829,1749511842604,-504.39,0.00016438,2]
[365170830,1749511842614,-1292.262258,0.00016438,2]
[365170831,1749511842623,-490.0,0.00016438,2]
[365170832,1749511842633,-557.8,0.00016438,2]
[365170833,1749511842642,-630.91,0.00016438,2]
[365170834,1749511842651,-1292.262258,0.00016438,2]
[365170835,1749511842660,-490.0,0.00016438,2]
[365170836,1749511842666,-490.0,0.00016438,2]
[365170837,1749511842676,-490.0,0.00016438,2]
[365170838,1749511842685,-151.0,0.00016438,2]
[365170839,1749511842695,-594.95,0.00016438,2]
[365170840,1749511842705,-490.0,0.00016438,2]
[365170841,1749511842714,-490.0,0.00016438,2]
[365170842,1749511842723,-888.3,0.00016438,2]
[365170843,1749511842733,-151.0,0.00016438,2]
[365170844,1749511842743,-722.69,0.00016438,2]
[365170845,1749511842754,-1597.29,0.00016438,2]
[365170846,1749511842763,-490.0,0.00016438,2]
[365170847,1749511842772,-515.27,0.00016438,2]
[365170848,1749511842782,-523.46,0.00016438,2]
[365170849,1749511842791,-850.96,0.00016438,2]
[365170850,1749511842801,-1191.23,0.00016438,2]
[365170851,1749511842814,-304.51090947,0.00016438,2]
[365170852,1749511842823,-978.66,0.00016438,2]
[365170854,1749511842832,-500.0,0.00016465,2]
[365170855,1749511842840,-150.0,0.00016465,2]
[365170856,1749511842849,-500.0,0.00016473,2]
[365170857,1749511842858,-500.0,0.00016473,2]
[365170858,1749511842868,-500.0,0.00016473,2]
[365170859,1749511842877,-500.0,0.00016473,2]
[365170860,1749511842886,-500.0,0.00016493,2]
[365170861,1749511842896,-150.0,0.00016493,2]
[365170862,1749511842905,-151.0,0.000165,2]
[365170863,1749511842914,-540.0657115,0.00016502,2]
[365170864,1749511842924,-1863.58789525,0.00016502,2]
[365170865,1749511842933,-300.0,0.00016515,2]
[365170866,1749511842942,-500.0,0.0001652,2]
[365170867,1749511842952,-164.0,0.0001652,2]
[365170868,1749511842961,-151.0,0.00016525,2]
[365170869,1749511842971,-500.0,0.00016548,2]
[365170870,1749511842981,-151.0,0.0001655,2]
[365170871,1749511842990,-500.0,0.00016575,2]
[365170872,1749511843000,-151.0,0.0001658,2]
[365170873,1749511843009,-9496.90321211,0.00016594,2]
[365170874,1749511843019,-490.0,0.00016602,2]
[365170875,1749511843028,-490.0,0.00016602,2]
[365170876,1749511843037,-490.0,0.00016602,2]
[365170877,1749511843047,-490.0,0.00016602,2]
[365170878,1749511843057,-490.0,0.00016602,2]
[365170879,1749511843066,-528.68,0.00016602,2]
[365170880,1749511843076,-490.0,0.00016602,2]
[365170881,1749511843086,-568.66,0.00016602,2]
[365170882,1749511843095,-490.0,0.00016602,2]
[365170883,1749511843105,-464.7759702,0.00016602,2]
[365170884,1749511843114,-212.18999253,0.00016602,2]
[365170885,1749511843124,-612.88,0.00016602,2]
[365170886,1749511843133,-490.0,0.00016602,2]
[365170887,1749511843143,-490.0,0.00016602,2]
[365170888,1749511843152,-490.0,0.00016602,2]
[365170889,1749511843162,-490.0,0.00016602,2]
[365170890,1749511843172,-490.0,0.00016602,2]
[365170891,1749511843181,-499.5945327,0.00016602,2]
[365170892,1749511843191,-490.0,0.00016602,2]
[365170893,1749511843200,-490.0,0.00016602,2]
[365170895,1749511843210,-490.0,0.00016602,2]
[365170897,1749511843219,-490.0,0.00016602,2]
[365170899,1749511843228,-490.0,0.00016602,2]
[365170901,1749511843238,-490.0,0.00016602,2]
[365170902,1749511843248,-681.27,0.00016602,2]
[365170903,1749511843260,-605.64574364,0.00016602,2]
[365170904,1749511843269,-811.16,0.00016602,2]
[365170905,1749511843279,-513.44694004,0.00016602,2]
[365170906,1749511843289,-490.0,0.00016602,2]
[365170907,1749511843298,-490.0,0.00016602,2]
[365170908,1749511843309,-490.0,0.00016602,2]
[365170909,1749511843319,-490.0,0.00016602,2]
[365170910,1749511843328,-490.0,0.00016602,2]
[365170911,1749511843338,-490.0,0.00016602,2]
[365170912,1749511843348,-490.0,0.00016602,2]
[365170914,1749511843358,-490.0,0.00016602,2]
[365170915,1749511843367,-1203.79,0.00016602,2]
[365170916,1749511843377,-490.0,0.00016602,2]
[365170917,1749511843388,-490.0,0.00016602,2]
[365170918,1749511843398,-490.0,0.00016602,2]
[365170919,1749511843408,-873.43,0.00016602,2]
[365170920,1749511843418,-490.0,0.00016602,2]
[365170921,1749511843427,-490.0,0.00016602,2]
[365170922,1749511843437,-490.0,0.00016602,2]
[365170923,1749511843447,-490.0,0.00016602,2]
[365170924,1749511843457,-490.0,0.00016602,2]
[365170925,1749511843467,-430.0,0.00016602,2]
[365170926,1749511843477,-490.0,0.00016602,2]
[365170927,1749511843487,-491.34,0.00016602,2]
[365170928,1749511843496,-490.0,0.00016602,2]
[365170929,1749511843506,-490.0,0.00016602,2]
[365170930,1749511843515,-513.06,0.00016602,2]
[365170931,1749511843525,-490.0,0.00016602,2]
[365170932,1749511843535,-430.0,0.00016602,2]
[365170933,1749511843544,-490.0,0.00016602,2]
[365170934,1749511843554,-490.0,0.00016602,2]
[365170935,1749511843564,-490.0,0.00016602,2]
[365170936,1749511843573,-490.0,0.00016602,2]
[365170937,1749511843583,-565.93,0.00016602,2]
[365170938,1749511843593,-490.0,0.00016602,2]
[365170939,1749511843602,-490.0,0.00016602,2]
[365170940,1749511843612,-490.0,0.00016602,2]
[365170941,1749511843621,-490.0,0.00016602,2]
[365170942,1749511843631,-470.0,0.00016602,2]
[365170943,1749511843640,-152.167036,0.00016602,2]
[365170944,1749511843650,-490.0,0.00016602,2]
[365170945,1749511843659,-490.0,0.00016602,2]
[365170946,1749511843669,-490.0,0.00016602,2]
[365170947,1749511843679,-490.0,0.00016602,2]
[365170948,1749511843688,-490.0,0.00016602,2]
[365170949,1749511843697,-490.0,0.00016602,2]
[365170950,1749511843706,-490.0,0.00016602,2]
[365170951,1749511843716,-490.0,0.00016602,2]
[365170952,1749511843726,-490.0,0.00016602,2]
[365170953,1749511843735,-490.0,0.00016602,2]
[365170954,1749511843744,-490.0,0.00016602,2]
[365170955,1749511843754,-686.65,0.00016602,2]
[365170956,1749511843764,-490.0,0.00016602,2]
[365170957,1749511843773,-151.0,0.00016602,2]
[365170958,1749511843783,-490.0,0.00016602,2]
[365170959,1749511843793,-490.0,0.00016602,2]
[365170960,1749511843802,-490.0,0.00016602,2]
[365170961,1749511843812,-490.0,0.00016602,2]
[365170962,1749511843821,-490.0,0.00016602,2]
[365170963,1749511843831,-490.0,0.00016602,2]
[365170964,1749511843840,-490.0,0.00016602,2]
[365170965,1749511843849,-756.82,0.00016602,2]
[365170966,1749511843861,-490.0,0.00016602,2]
[365170968,1749511843871,-490.0,0.00016602,2]
[365170970,1749511843880,-626.45,0.00016602,2]
[365170972,1749511843890,-490.0,0.00016602,2]
[365170974,1749511843899,-510.58,0.00016602,2]
[365170976,1749511843908,-490.0,0.00016602,2]
[365170978,1749511843918,-478.64129212,0.00016602,2]
[365170980,1749511843928,-490.0,0.00016602,2]
[365170982,1749511843937,-470.0,0.00016602,2]
[365170983,1749511843947,-490.0,0.00016602,2]
[365170984,1749511843957,-536.8,0.00016602,2]
[365170985,1749511843966,-490.0,0.00016602,2]
[365170986,1749511843976,-490.0,0.00016602,2]
[365170987,1749511843985,-490.68,0.00016602,2]
[365170988,1749511843995,-470.0,0.00016602,2]
[365170989,1749511844005,-490.0,0.00016602,2]
[365170990,1749511844015,-490.0,0.00016602,2]
[365170991,1749511844024,-490.0,0.00016602,2]
[365170992,1749511844034,-470.0,0.00016602,2]
[365170993,1749511844043,-666.57,0.00016602,2]
[365170994,1749511844053,-490.0,0.00016602,2]
[365170995,1749511844062,-490.0,0.00016602,2]
[365170996,1749511844071,-151.0,0.00016602,2]
[365170997,1749511844081,-151.0,0.00016602,2]
[365170998,1749511844091,-151.0,0.00016602,2]
[365170999,1749511844100,-490.0,0.00016602,2]
[365171000,1749511844110,-490.0,0.00016602,2]
[365171001,1749511844120,-490.0,0.00016602,2]
[365171002,1749511844130,-490.0,0.00016602,2]
[365171003,1749511844140,-151.0,0.00016602,2]
[365171004,1749511844150,-151.0,0.00016602,2]
[365171005,1749511844160,-490.0,0.00016602,2]
[365171006,1749511844170,-151.0,0.00016602,2]
[365171007,1749511844179,-209.03838,0.00016602,2]
[365171008,1749511844189,-490.0,0.00016602,2]
[365171009,1749511844198,-490.0,0.00016602,2]
[365171010,1749511844208,-490.0,0.00016602,2]
[365171011,1749511844217,-490.0,0.00016602,2]
[365171012,1749511844227,-490.0,0.00016602,2]
[365171013,1749511844236,-151.0,0.00016602,2]
[365171014,1749511844246,-151.0,0.00016602,2]
[365171015,1749511844256,-490.0,0.00016602,2]
[365171016,1749511844265,-151.0,0.00016602,2]
[365171017,1749511844275,-905.53,0.00016602,2]
[365171018,1749511844284,-490.0,0.00016602,2]
[365171019,1749511844294,-543.99,0.00016602,2]
[365171020,1749511844306,-490.0,0.00016602,2]
[365171021,1749511844316,-490.0,0.00016602,2]
[365171022,1749511844326,-490.0,0.00016602,2]
[365171023,1749511844335,-490.0,0.00016602,2]
[365171024,1749511844345,-490.0,0.00016602,2]
[365171025,1749511844355,-1195.08,0.00016602,2]
[365171026,1749511844365,-490.0,0.00016602,2]
[365171027,1749511844374,-490.0,0.00016602,2]
[365171028,1749511844386,-561.17,0.00016602,2]
[365171029,1749511844396,-490.0,0.00016602,2]
[365171030,1749511844406,-490.0,0.00016602,2]
[365171031,1749511844415,-490.0,0.00016602,2]
[365171032,1749511844425,-490.0,0.00016602,2]
[365171033,1749511844435,-490.0,0.00016602,2]
[365171034,1749511844445,-815.01,0.00016602,2]
[365171035,1749511844455,-518.23,0.00016602,2]
[365171036,1749511844465,-547.19,0.00016602,2]
[365171037,1749511844475,-1508.01,0.00016602,2]
[365171038,1749511844484,-490.0,0.00016602,2]
[365171039,1749511844493,-151.0,0.00016602,2]
[365171040,1749511844503,-151.0,0.00016602,2]
[365171041,1749511844513,-273.330658,0.00016602,2]
[365171042,1749511844523,-490.0,0.00016602,2]
[365171043,1749511844532,-490.0,0.00016602,2]
[365171044,1749511844542,-490.0,0.00016602,2]
[365171045,1749511844552,-2593.63,0.00016602,2]
[365171046,1749511844561,-490.0,0.00016602,2]
[365171047,1749511844571,-1114.94,0.00016602,2]
[365171048,1749511844581,-490.0,0.00016602,2]
[365171049,1749511844590,-490.0,0.00016602,2]
[365171050,1749511844600,-1002.67,0.00016602,2]
[365171051,1749511844610,-490.0,0.00016602,2]
[365171052,1749511844619,-151.0,0.00016602,2]
[365171053,1749511844629,-151.0,0.00016602,2]
[365171054,1749511844638,-490.0,0.00016602,2]
[365171055,1749511844648,-151.0,0.00016602,2]
[365171056,1749511844657,-1295.21,0.00016602,2]
[365171057,1749511844666,-490.0,0.00016602,2]
[365171058,1749511844675,-151.0,0.00016602,2]
[365171059,1749511844685,-151.0,0.00016602,2]
[365171060,1749511844695,-216.527125,0.00016602,2]
[365171061,1749511844706,-470.0,0.00016602,2]
[365171062,1749511844715,-490.0,0.00016602,2]
[365171063,1749511844725,-490.0,0.00016602,2]
[365171064,1749511844734,-151.0,0.00016602,2]
[365171065,1749511844745,-490.0,0.00016602,2]
[365171066,1749511844756,-151.0,0.00016602,2]
[365171067,1749511844765,-490.0,0.00016602,2]
[365171068,1749511844775,-151.0,0.00016602,2]
[365171069,1749511844784,-490.0,0.00016602,2]
[365171070,1749511844794,-546.21,0.00016602,2]
[365171071,1749511844805,-490.0,0.00016602,2]
[365171072,1749511844814,-490.0,0.00016602,2]
[365171073,1749511844824,-740.01,0.00016602,2]
[365171074,1749511844834,-490.0,0.00016602,2]
[365171075,1749511844843,-490.0,0.00016602,2]
[365171076,1749511844852,-490.0,0.00016602,2]
[365171077,1749511844862,-490.0,0.00016602,2]
[365171078,1749511844871,-626.45,0.00016602,2]
[365171079,1749511844881,-490.0,0.00016602,2]
[365171080,1749511844891,-490.0,0.00016602,2]
[365171081,1749511844900,-535.83,0.00016602,2]
[365171082,1749511844910,-759.85,0.00016602,2]
[365171083,1749511844920,-490.0,0.00016602,2]
[365171084,1749511844929,-490.0,0.00016602,2]
[365171085,1749511844938,-490.0,0.00016602,2]
[365171086,1749511845150,-1329.3,0.00016602,2]
[365171087,1749511845160,-490.0,0.00016602,2]
[365171088,1749511845169,-527.31,0.00016602,2]
[365171089,1749511845179,-490.0,0.00016602,2]
[365171090,1749511845188,-490.0,0.00016602,2]
[365171091,1749511845198,-490.0,0.00016602,2]
[365171092,1749511845208,-490.0,0.00016602,2]
[365171093,1749511845217,-490.0,0.00016602,2]
[365171094,1749511845227,-490.0,0.00016602,2]
[365171095,1749511845237,-512.92,0.00016602,2]
[365171096,1749511845247,-616.16,0.00016602,2]
[365171097,1749511845257,-1264.3,0.00016602,2]
[365171098,1749511845266,-490.0,0.00016602,2]
[365171099,1749511845276,-490.0,0.00016602,2]
[365171100,1749511845286,-490.0,0.00016602,2]
[365171101,1749511845296,-572.35882852,0.00016602,2]
[365171102,1749511845308,-610.13,0.00016602,2]
[365171103,1749511845319,-660.15,0.00016602,2]
[365171104,1749511845329,-1121.41,0.00016602,2]
[365171105,1749511845338,-498.87,0.00016602,2]
[365171106,1749511845349,-555.04,0.00016602,2]
[365171107,1749511845359,-764.26,0.00016602,2]
[365171108,1749511845369,-151.0,0.00016602,2]
[365171109,1749511845380,-672.84,0.00016602,2]
[365171110,1749511845390,-627.49,0.00016602,2]
[365171111,1749511845399,-1275.4,0.00016602,2]
[365171112,1749511845409,-490.0,0.00016602,2]
[365171113,1749511845419,-490.0,0.00016602,2]
[365171114,1749511845429,-772.9,0.00016602,2]
[365171115,1749511845438,-490.0,0.00016602,2]
[365171116,1749511845448,-1208.78,0.00016602,2]
[365171117,1749511845457,-490.0,0.00016602,2]
[365171118,1749511845468,-490.0,0.00016602,2]
[365171119,1749511845478,-490.0,0.00016602,2]
[365171120,1749511845488,-490.0,0.00016602,2]
[365171121,1749511845497,-506.43,0.00016602,2]
[365171122,1749511845508,-490.0,0.00016602,2]
[365171123,1749511845518,-490.0,0.00016602,2]
[365171124,1749511845528,-502.19,0.00016602,2]
[365171125,1749511845538,-490.0,0.00016602,2]
[365171126,1749511845548,-3249.0,0.00016602,2]
[365171127,1749511845558,-634.37,0.00016602,2]
[365171128,1749511845567,-800.68,0.00016602,2]
[365171129,1749511845577,-151.0,0.00016602,2]
[365171131,1749511845587,-490.0,0.00016602,2]
[365171133,1749511845597,-151.0,0.00016602,2]
[365171135,1749511845608,-151.0,0.00016602,2]
[365171137,1749511845618,-151.0,0.00016602,2]
[365171139,1749511845627,-490.0,0.00016602,2]
[365171141,1749511845638,-896.11,0.00016602,2]
[365171143,1749511845647,-490.0,0.00016602,2]
[365171145,1749511845657,-681.52,0.00016602,2]
[365171147,1749511845667,-490.0,0.00016602,2]
[365171149,1749511845677,-151.0,0.00016602,2]
[365171151,1749511845687,-151.0,0.00016602,2]
[365171152,1749511845696,-151.0,0.00016602,2]
[365171154,1749511845705,-490.0,0.00016602,2]
[365171155,1749511845715,-2965.23,0.00016602,2]
[365171156,1749511845724,-490.0,0.00016602,2]
[365171157,1749511845733,-490.0,0.00016602,2]
[365171158,1749511845743,-490.0,0.00016602,2]
[365171159,1749511845754,-497.5984125,0.00016602,2]
[365171160,1749511845763,-490.0,0.00016602,2]
[365171161,1749511845772,-490.0,0.00016602,2]
[365171162,1749511845782,-719.75,0.00016602,2]
[365171163,1749511845791,-151.0,0.00016602,2]
[365171164,1749511845801,-151.0,0.00016602,2]
[365171165,1749511845810,-490.0,0.00016602,2]
[365171166,1749511845820,-490.0,0.00016602,2]
[365171167,1749511845829,-616.58,0.00016602,2]
[365171168,1749511845839,-490.0,0.00016602,2]
[365171169,1749511845849,-490.0,0.00016602,2]
[365171170,1749511845868,-497.74,0.00016602,2]
[365171171,1749511845878,-730.14,0.00016602,2]
[365171172,1749511845888,-151.0,0.00016602,2]
[365171173,1749511845898,-151.0,0.00016602,2]
[365171174,1749511845909,-490.0,0.00016602,2]
[365171175,1749511845920,-582.3,0.00016602,2]
[365171176,1749511845933,-1070.79,0.00016602,2]
[365171177,1749511845943,-490.0,0.00016602,2]
[365171178,1749511845953,-588.54759328,0.00016602,2]
[365171179,1749511845963,-839.92,0.00016602,2]
[365171180,1749511845974,-686.6,0.00016602,2]
[365171181,1749511845985,-501.75,0.00016602,2]
[365171182,1749511845995,-490.0,0.00016602,2]
[365171183,1749511846005,-490.0,0.00016602,2]
[365171184,1749511846015,-490.0,0.00016602,2]
[365171185,1749511846025,-1307.39,0.00016602,2]